bitfinex/quotes_SOLUSD_20250307
["timestamp","ask_amount","ask_price","bid_price","bid_amount"]
[1741316111863,0.03,141.55,141.5,319.24206157]
[1741316112073,0.03,141.55,141.5,312.17516157]
[1741316112881,0.03,141.55,141.5,319.24196157]
[1741316113040,0.03,141.55,141.5,246.07097051]
[1741316113765,0.03,141.55,141.5,239.00417051]
[1741316113971,18.95900894,141.55,141.5,220.07516157]
[1741316115266,18.95900894,141.55,141.5,82.27516157]
[1741316115978,0.03,141.55,141.5,394.27516157]
[1741316116741,0.03,141.55,141.52,0.14216157]
[1741316117656,0.03,141.55,141.51,0.14216157]
[1741316119285,0.03,141.55,141.51,7.20866157]
[1741316119586,0.03,141.55,141.53,0.14216157]
[1741316119753,0.03,141.55,141.54,37.86298094]
[1741316120079,0.03,141.55,141.54,259.24597074]
[1741316120253,0.03,141.55,141.54,257.76298094]
[1741316120785,0.03,141.55,141.54,101.17117051]
[1741316120953,0.03,141.55,141.54,82.24216157]
[1741316121669,0.03,141.55,141.51,82.1]
[1741316121670,18.95900894,141.55,141.51,82.1]
[1741316121870,18.92900894,141.53,141.51,82.1]
[1741316122088,18.92900894,141.52,141.5,0.033]
[1741316122386,18.92900894,141.51,141.5,0.033]
[1741316122590,32.88632378,141.51,141.5,0.033]
[1741316122895,13.95731484,141.51,141.5,0.033]
[1741316123095,18.92900894,141.52,141.5,0.033]
[1741316124571,18.92900894,141.53,141.5,0.033]
[1741316124773,20.46020894,141.54,141.5,0.033]
[1741316125174,18.92900894,141.53,141.5,0.033]
[1741316125370,18.92900894,141.51,141.47,0.033]
[1741316125573,18.92900894,141.48,141.47,0.033]
[1741316126791,18.92900894,141.49,141.47,0.033]
[1741316127173,18.92900894,141.48,141.47,0.033]
[1741316127576,18.92900894,141.48,141.47,0.0001]
[1741316127985,20.56610894,141.48,141.47,0.0001]
[1741316128301,100.79181043,141.47,141.4,312.0]
[1741316128468,18.92900894,141.42,141.39,0.033]
[1741316128814,18.92900894,141.42,141.39,0.17516157]
[1741316128975,18.92900894,141.42,141.39,0.033]
[1741316129478,18.92900894,141.43,141.39,0.033]
[1741316131012,18.92900894,141.42,141.39,0.033]
[1741316131320,18.92900894,141.41,141.39,0.033]
[1741316131493,18.92900894,141.4,141.39,0.033]
[1741316133699,37.72081937,141.4,141.36,0.033]
[1741316133894,18.92900894,141.37,141.36,0.033]
[1741316137326,37.72081937,141.37,141.36,0.033]
[1741316137926,18.92900894,141.37,141.36,0.033]
[1741316138803,20.48420894,141.37,141.36,0.033]
[1741316139497,1.5552,141.37,141.36,0.033]
[1741316139832,20.48420894,141.37,141.36,0.033]
[1741316140398,20.48420894,141.37,141.35,0.14216157]
[1741316140613,18.92900894,141.38,141.35,0.14216157]
[1741316141330,18.92900894,141.38,141.35,312.14216157]
[1741316141625,83.5877,141.41,141.35,312.14216157]
[1741316141626,18.92900894,141.4,141.35,312.14216157]
[1741316141925,20.51670894,141.41,141.35,246.04567051]
[1741316142701,18.95900894,141.43,141.37,0.14216157]
[1741316143024,18.92900894,141.42,141.37,0.14216157]
[1741316143228,18.95900894,141.43,141.37,0.14216157]
[1741316143408,18.95900894,141.43,141.37,19.07117051]
[1741316143730,0.03,141.43,141.39,18.92900894]
[1741316143933,0.03,141.43,141.4,0.14216157]
[1741316144634,0.03,141.43,141.4,26.14307051]
[1741316145006,0.03,141.43,141.4,338.14307051]
[1741316145218,0.03,141.43,141.4,319.21406157]
[1741316145418,0.03,141.43,141.4,7.21406157]
[1741316145836,0.03,141.43,141.4,26.14307051]
[1741316146156,0.03,141.43,141.42,0.14216157]
[1741316146325,0.03,141.43,141.42,257.76298094]
[1741316146938,1.5306,141.53,141.47,19.07117051]
[1741316146939,20.45960894,141.53,141.47,19.07117051]
[1741316147117,20.45960894,141.53,141.47,238.97117051]
[1741316147317,20.45960894,141.53,141.47,220.04216157]
[1741316148043,18.92900894,141.51,141.47,220.04216157]
[1741316148241,1.5306,141.53,141.47,220.04216157]
[1741316148542,20.45960894,141.53,141.49,0.14216157]
[1741316148951,20.45960894,141.53,141.48,0.14216157]
[1741316150237,18.92900894,141.54,141.48,19.07117051]
[1741316150549,18.95900894,141.55,141.48,26.13907051]
[1741316150852,18.95900894,141.55,141.48,19.07117051]
[1741316151346,18.92900894,141.54,141.48,19.07117051]
[1741316152032,18.92900894,141.53,141.5,0.14216157]
[1741316152525,18.92900894,141.53,141.49,0.14216157]
[1741316153449,7.54,141.52,141.42,82.1]
[1741316153647,1.61,141.45,141.38,137.833]
[1741316153849,25.47960894,141.44,141.38,0.033]
[1741316154224,18.92900894,141.39,141.38,0.033]
[1741316154937,7.54,141.41,141.33,137.833]
[1741316155146,18.79181043,141.4,141.33,0.033]
[1741316155650,7.54,141.41,141.34,0.14216157]
[1741316156031,18.92900894,141.4,141.33,330.96200894]
[1741316156224,7.54,141.41,141.33,312.033]
[1741316156425,18.92900894,141.4,141.33,330.96200894]
[1741316156622,30.35142804,141.4,141.34,0.14216157]
[1741316156834,30.35142804,141.41,141.34,30.49358961]
[1741316157030,30.35142804,141.4,141.33,30.38442804]
[1741316157244,30.35142804,141.4,141.34,0.14216157]
[1741316158258,30.35142804,141.37,141.33,0.033]
[1741316158435,0.14216157,141.43,141.33,137.97516157]
[1741316158753,18.79181043,141.43,141.33,0.17516157]
[1741316158953,30.35142804,141.39,141.33,0.17516157]
[1741316159157,30.35142804,141.38,141.33,82.27516157]
[1741316159852,30.35142804,141.36,141.35,0.14216157]
[1741316160058,30.35142804,141.36,141.33,82.133]
[1741316160247,30.35142804,141.35,141.34,0.14216157]
[1741316160450,30.35142804,141.35,141.33,0.033]
[1741316160652,30.35142804,141.34,141.33,0.033]
[1741316160860,30.35142804,141.35,141.33,0.033]
[1741316161465,30.35142804,141.37,141.33,0.033]
[1741316161644,82.0,141.4,141.33,0.033]
[1741316161961,30.35142804,141.37,141.33,0.033]
[1741316162470,30.35142804,141.34,141.33,0.033]
[1741316162966,49.14323847,141.34,141.33,0.0001]
[1741316164066,52.76147498,141.34,141.31,0.0001]
[1741316164252,49.14323847,141.32,141.31,0.0001]
[1741316164442,30.35142804,141.32,141.31,0.0001]
[1741316164644,30.35142804,141.33,141.31,0.0001]
[1741316164949,9.1578,141.37,141.31,0.0001]
[1741316165254,30.35142804,141.36,141.31,0.14226157]
[1741316165459,1.6178,141.37,141.31,0.14226157]
[1741316165655,31.96922804,141.37,141.32,0.14216157]
[1741316165863,30.35142804,141.38,141.32,7.21796157]
[1741316166071,30.35142804,141.38,141.32,349.56938961]
[1741316166257,30.35142804,141.39,141.32,487.36938961]
[1741316166566,30.35142804,141.39,141.32,175.36938961]
[1741316166770,1.5154,141.45,141.36,0.14216157]
[1741316166961,1.5154,141.45,141.38,30.35142804]
[1741316167166,31.86682804,141.45,141.39,0.14216157]
[1741316167363,30.35142804,141.44,141.39,0.14216157]
[1741316167542,1.5154,141.45,141.38,30.49358961]
[1741316167748,31.86682804,141.45,141.38,30.49358961]
[1741316167942,30.35142804,141.44,141.38,0.14216157]
[1741316168253,30.35142804,141.44,141.38,49.28540004]
[1741316168458,30.35142804,141.45,141.38,49.28540004]
[1741316168658,30.35142804,141.45,141.39,30.35142804]
[1741316168853,30.35142804,141.45,141.4,0.14216157]
[1741316169039,30.35142804,141.44,141.4,0.14216157]
[1741316169243,30.35142804,141.44,141.39,0.14216157]
[1741316169671,30.35142804,141.44,141.4,312.0]
[1741316170045,30.35142804,141.42,141.38,82.1]
[1741316170368,30.35142804,141.43,141.39,0.14216157]
[1741316172071,30.35142804,141.42,141.39,0.14216157]
[1741316172277,30.35142804,141.41,141.39,0.14216157]
[1741316172772,30.35142804,141.4,141.35,82.1]
[1741316172980,30.35142804,141.38,141.35,82.1]
[1741316173146,30.35142804,141.38,141.36,0.14216157]
[1741316173346,30.35142804,141.39,141.36,0.14216157]
[1741316174467,82.0,141.42,141.36,0.14216157]
[1741316174468,30.35142804,141.4,141.36,0.14216157]
[1741316174651,30.35142804,141.41,141.36,0.14216157]
[1741316174850,30.35142804,141.41,141.36,82.24216157]
[1741316175172,30.35142804,141.44,141.39,0.14216157]
[1741316175472,82.0,141.47,141.39,82.24216157]
[1741316175649,0.03,141.43,141.39,112.59358961]
[1741316176067,0.03,141.43,141.39,82.24216157]
[1741316177181,0.03,141.43,141.39,89.31446157]
[1741316177482,0.03,141.43,141.41,0.14216157]
[1741316177777,0.03,141.43,141.41,312.14216157]
[1741316179377,0.03,141.43,141.41,0.14216157]
[1741316179678,31.98082804,141.42,141.33,219.933]
[1741316179975,31.98082804,141.42,141.33,0.033]
[1741316179976,30.35142804,141.36,141.33,0.033]
[1741316180179,30.35142804,141.37,141.33,0.033]
[1741316180383,30.35142804,141.35,141.33,0.033]
[1741316180679,18.79181043,141.39,141.33,0.033]
[1741316180857,30.35142804,141.37,141.33,0.033]
[1741316181059,30.35142804,141.37,141.33,0.17516157]
[1741316181267,30.35142804,141.37,141.33,0.033]
[1741316181685,1.6294,141.42,141.33,0.033]
[1741316181859,30.35142804,141.4,141.33,250.42658961]
[1741316182053,30.35142804,141.41,141.35,0.14216157]
[1741316182360,30.35142804,141.41,141.35,312.14216157]
[1741316183075,30.35142804,141.41,141.37,0.14216157]
[1741316183383,31.98082804,141.42,141.37,0.14216157]
[1741316183679,30.35142804,141.42,141.36,0.14216157]
[1741316184051,30.35142804,141.41,141.36,0.14216157]
[1741316184248,30.35142804,141.39,141.36,0.14216157]
[1741316185053,30.35142804,141.37,141.33,0.033]
[1741316185278,30.35142804,141.35,141.33,0.033]
[1741316185665,30.35142804,141.36,141.33,0.033]
[1741316186290,1.5579,141.38,141.33,0.033]
[1741316186291,31.90932804,141.38,141.33,0.033]
[1741316186461,30.35142804,141.4,141.34,30.49358961]
[1741316186656,30.35142804,141.41,141.34,30.49358961]
[1741316186887,30.35142804,141.41,141.34,250.39358961]
[1741316187384,0.03,141.43,141.38,0.14216157]
[1741316187687,0.03,141.43,141.38,82.24216157]
[1741316187987,0.03,141.43,141.4,0.14216157]
[1741316188154,0.03,141.43,141.4,7.21416157]
[1741316188357,0.03,141.43,141.4,257.46558961]
[1741316189576,0.03,141.41,141.4,220.04216157]
[1741316191012,0.03,141.41,141.4,0.14216157]
[1741316191293,0.03,141.41,141.38,82.1]
[1741316191464,0.03,141.41,141.39,0.14216157]
[1741316192374,30.35142804,141.4,141.38,82.1]
[1741316192584,30.35142804,141.4,141.36,401.64]
[1741316193397,30.35142804,141.4,141.36,319.54]
[1741316193597,30.35142804,141.4,141.37,0.14216157]
[1741316195691,0.03,141.41,141.37,0.14216157]
[1741316195895,0.03,141.41,141.37,7.21546157]
[1741316196274,0.03,141.41,141.37,0.14216157]
[1741316197071,30.38142804,141.41,141.37,0.14216157]
[1741316197510,30.35142804,141.38,141.36,137.8]
[1741316197811,30.35142804,141.37,141.33,0.033]
[1741316197997,30.35142804,141.34,141.33,0.033]
[1741316198309,82.0,141.37,141.33,0.033]
[1741316198507,30.35142804,141.38,141.33,0.033]
[1741316199110,30.35142804,141.38,141.33,312.033]
[1741316200225,3.62659174,141.41,141.33,312.033]
[1741316200506,30.35142804,141.38,141.34,0.14216157]
[1741316200712,3.62659174,141.41,141.34,0.14216157]
[1741316200713,30.35142804,141.4,141.34,0.14216157]
[1741316201002,30.35142804,141.4,141.34,30.49358961]
[1741316201228,30.35142804,141.4,141.34,0.14216157]
[1741316201614,30.35142804,141.4,141.34,7.21706157]
[1741316202317,30.38142804,141.41,141.34,257.46848961]
[1741316203203,30.35142804,141.4,141.34,227.11706157]
[1741316203500,30.35142804,141.4,141.34,220.04216157]
[1741316203701,30.35142804,141.39,141.34,220.04216157]
[1741316204007,30.35142804,141.39,141.35,312.0]
[1741316204309,30.35142804,141.39,141.34,220.04216157]
[1741316205818,30.35142804,141.4,141.34,82.24216157]
[1741316205993,30.35142804,141.4,141.34,89.31706157]
[1741316206516,0.03,141.41,141.36,30.49358961]
[1741316206810,0.03,141.41,141.37,0.14216157]
[1741316206996,30.38142804,141.41,141.37,82.1]
[1741316207311,30.35142804,141.4,141.37,394.1]
[1741316207512,30.35142804,141.4,141.37,82.1]
[1741316207692,30.35142804,141.39,141.37,82.1]
[1741316207893,30.35142804,141.4,141.37,82.1]
[1741316208508,0.03,141.41,141.38,0.14216157]
[1741316208916,30.38142804,141.41,141.38,0.14216157]
[1741316209715,30.35142804,141.39,141.37,82.1]
[1741316210013,30.35142804,141.38,141.33,82.133]
[1741316210409,30.35142804,141.38,141.34,0.14216157]
[1741316210806,0.03,141.41,141.34,112.59358961]
[1741316211008,30.38142804,141.41,141.34,250.39358961]
[1741316211208,30.35142804,141.4,141.34,220.04216157]
[1741316211723,30.35142804,141.4,141.34,227.11696157]
[1741316212019,30.35142804,141.4,141.34,220.04216157]
[1741316212324,30.35142804,141.38,141.34,220.04216157]
[1741316212493,30.35142804,141.39,141.34,82.24216157]
[1741316213422,30.35142804,141.4,141.34,119.66858961]
[1741316213716,0.03,141.41,141.35,30.35142804]
[1741316213905,0.03,141.41,141.36,0.14216157]
[1741316214098,0.03,141.41,141.36,312.14216157]
[1741316215389,30.38142804,141.41,141.36,312.14216157]
[1741316216023,82.0,141.4,141.33,0.033]
[1741316216327,30.35142804,141.39,141.33,0.033]
[1741316216496,30.35142804,141.4,141.33,30.38442804]
[1741316217009,30.35142804,141.4,141.34,0.14216157]
[1741316219025,30.35142804,141.4,141.34,312.14216157]
[1741316220633,30.35142804,141.4,141.34,394.24216157]
[1741316221226,30.35142804,141.4,141.34,82.1]
[1741316221227,30.35142804,141.37,141.34,82.1]
[1741316221404,82.14216157,141.4,141.33,0.033]
[1741316221613,30.35142804,141.37,141.33,0.033]
[1741316224133,30.35142804,141.37,141.34,0.14216157]
[1741316224311,30.35142804,141.36,141.33,0.033]
[1741316225324,30.35142804,141.37,141.33,0.033]
[1741316225628,31.99752804,141.36,141.33,0.033]
[1741316226405,30.35142804,141.35,141.33,0.033]
[1741316227807,30.35142804,141.37,141.33,0.033]
[1741316228113,82.0,141.39,141.33,0.033]
[1741316228312,30.35142804,141.35,141.33,0.033]
[1741316228512,30.35142804,141.36,141.33,0.033]
[1741316229227,30.35142804,141.35,141.33,0.033]
[1741316229624,30.35142804,141.37,141.33,0.033]
[1741316230528,1.5456,141.4,141.34,0.14216157]
[1741316230703,30.35142804,141.38,141.34,82.24216157]
[1741316231209,30.35142804,141.36,141.34,394.24216157]
[1741316231401,30.35142804,141.36,141.34,312.14216157]
[1741316231609,30.35142804,141.36,141.33,0.033]
[1741316231903,30.35142804,141.36,141.33,0.17516157]
[1741316232114,30.35142804,141.34,141.33,0.033]
[1741316232310,30.35142804,141.34,141.31,0.0001]
[1741316232532,30.35142804,141.32,141.31,0.0001]
[1741316235026,49.14323847,141.32,141.31,0.0001]
[1741316235228,30.35142804,141.32,141.31,0.0001]
[1741316236539,1.5005,141.33,141.31,0.0001]
[1741316236723,30.35142804,141.32,141.31,0.0001]
[1741316237245,1.5005,141.33,141.31,0.0001]
[1741316237426,30.35142804,141.32,141.31,0.0001]
[1741316239549,30.35142804,141.32,141.25,0.17516157]
[1741316239717,30.35142804,141.29,141.25,82.27516157]
[1741316240235,30.35142804,141.3,141.25,82.27516157]
[1741316240447,30.35142804,141.31,141.25,82.27516157]
[1741316240633,30.35142804,141.32,141.27,0.14216157]
[1741316240835,31.85192804,141.33,141.31,0.033]
[1741316241044,30.35142804,141.34,141.31,0.033]
[1741316241345,24.26263226,141.36,141.31,0.033]
[1741316241521,30.35142804,141.33,141.31,0.033]
[1741316242122,30.35142804,141.34,141.31,0.033]
[1741316242345,30.35142804,141.36,141.31,0.033]
[1741316242540,18.97953432,141.36,141.31,82.133]
[1741316243345,18.97953432,141.35,141.31,82.133]
[1741316243731,18.97953432,141.34,141.32,0.14216157]
[1741316244044,18.97953432,141.35,141.32,0.14216157]
[1741316244222,18.97953432,141.35,141.32,312.14216157]
[1741316244423,18.97953432,141.36,141.32,312.14216157]
[1741316244624,30.36442239,141.35,141.32,312.14216157]
[1741316245650,30.36442239,141.33,141.31,82.133]
[1741316245843,30.36442239,141.33,141.31,0.033]
[1741316247148,30.36442239,141.34,141.31,0.033]
[1741316247548,30.36442239,141.33,141.31,0.033]
[1741316249049,30.36442239,141.34,141.31,0.033]
[1741316249427,30.36442239,141.35,141.31,0.033]
[1741316250323,30.36442239,141.33,141.31,0.033]
[1741316251422,82.0,141.36,141.31,0.033]
[1741316251423,30.36442239,141.34,141.31,0.033]
[1741316252537,30.36442239,141.33,141.31,0.033]
[1741316253747,30.36442239,141.34,141.31,0.033]
[1741316254139,30.36442239,141.33,141.31,0.033]
[1741316254673,30.36442239,141.34,141.31,0.033]
[1741316255528,30.36442239,141.35,141.32,0.14216157]
[1741316256039,31.93162239,141.37,141.32,82.24216157]
[1741316256233,1.5672,141.37,141.32,82.24216157]
[1741316256444,30.36442239,141.36,141.32,82.24216157]
[1741316257952,1.5672,141.37,141.32,82.24216157]
[1741316258152,31.93162239,141.37,141.32,82.24216157]
[1741316259644,112.39442239,141.4,141.34,0.14216157]
[1741316259837,30.39442239,141.4,141.34,82.24216157]
[1741316261162,30.36442239,141.39,141.34,82.24216157]
[1741316261862,30.36442239,141.39,141.34,394.24216157]
[1741316262041,30.36442239,141.38,141.34,394.24216157]
[1741316262247,30.36442239,141.36,141.34,82.1]
[1741316262465,30.36442239,141.38,141.32,0.14216157]
[1741316262659,30.36442239,141.39,141.32,30.50658396]
[1741316262878,30.36442239,141.39,141.34,0.14216157]
[1741316263862,30.36442239,141.38,141.34,0.14216157]
[1741316264264,30.36442239,141.38,141.33,0.14216157]
[1741316264564,30.36442239,141.37,141.33,0.14216157]
[1741316266454,30.39442239,141.37,141.33,0.14216157]
[1741316266655,19.00587066,141.37,141.33,0.14216157]
[1741316269279,18.97587066,141.36,141.33,0.14216157]
[1741316270661,19.00587066,141.37,141.33,0.14216157]
[1741316271379,19.00587066,141.37,141.32,0.14216157]
[1741316272084,18.97587066,141.35,141.31,0.033]
[1741316272250,18.97587066,141.34,141.31,0.033]
[1741316273655,0.03,141.37,141.31,0.033]
[1741316273656,18.97587066,141.35,141.31,0.033]
[1741316273858,18.97587066,141.36,141.31,0.033]
[1741316274578,18.97587066,141.36,141.32,0.14216157]
[1741316274779,18.97587066,141.35,141.32,0.14216157]
[1741316275671,18.97587066,141.36,141.32,0.14216157]
[1741316275873,0.03,141.37,141.32,0.14216157]
[1741316276048,19.00587066,141.37,141.32,0.14216157]
[1741316276660,18.97587066,141.36,141.32,0.14216157]
[1741316276861,19.00587066,141.37,141.32,0.14216157]
[1741316277756,18.97587066,141.36,141.32,0.14216157]
[1741316277952,0.03,141.37,141.32,0.14216157]
[1741316278278,18.97587066,141.36,141.32,0.14216157]
[1741316279369,18.97587066,141.34,141.32,0.14216157]
[1741316279776,18.97587066,141.35,141.32,0.14216157]
[1741316279961,18.97587066,141.36,141.32,0.14216157]
[1741316280169,22.52147945,141.37,141.32,0.14216157]
[1741316280352,0.03,141.37,141.32,0.14216157]
[1741316280556,19.00587066,141.37,141.32,0.14216157]
[1741316280759,0.03,141.37,141.32,0.14216157]
[1741316281775,0.03,141.37,141.32,312.14216157]
[1741316282588,0.03,141.37,141.32,338.19413223]
[1741316282770,0.03,141.37,141.32,0.14216157]
[1741316283478,19.00587066,141.37,141.32,0.14216157]
[1741316284477,18.97587066,141.36,141.32,0.14216157]
[1741316284677,18.97587066,141.35,141.31,0.033]
[1741316284858,18.97587066,141.34,141.31,0.033]
[1741316285060,18.97587066,141.33,141.31,0.033]
[1741316286489,18.97587066,141.34,141.31,0.033]
[1741316286659,100.97587066,141.35,141.31,0.033]
[1741316287191,18.97587066,141.32,141.31,0.033]
[1741316287594,82.0,141.35,141.31,0.033]
[1741316287771,18.97587066,141.34,141.31,0.033]
[1741316287978,100.97587066,141.35,141.31,0.033]
[1741316288878,82.0,141.35,141.31,0.033]
[1741316289173,18.97587066,141.36,141.31,82.133]
[1741316289371,0.03,141.37,141.32,0.14216157]
[1741316289573,0.03,141.37,141.32,19.11803223]
[1741316289786,0.03,141.37,141.32,331.11803223]
[1741316290196,0.03,141.37,141.32,312.14216157]
[1741316291008,18.97587066,141.36,141.32,312.14216157]
[1741316291369,19.00587066,141.37,141.32,312.14216157]
[1741316292102,18.97587066,141.36,141.32,0.14216157]
[1741316292471,18.97587066,141.35,141.32,0.14216157]
[1741316293372,0.03,141.37,141.31,0.033]
[1741316293373,18.97587066,141.33,141.31,0.033]
[1741316293577,18.97587066,141.32,141.31,0.033]
[1741316293783,18.97587066,141.33,141.31,0.033]
[1741316294472,18.97587066,141.34,141.31,0.033]
[1741316295674,18.97587066,141.33,141.31,0.033]
[1741316296271,18.97587066,141.34,141.31,0.033]
[1741316297185,18.97587066,141.33,141.31,0.033]
[1741316298390,18.97587066,141.32,141.31,0.033]
[1741316298695,18.97587066,141.32,141.25,82.133]
[1741316298903,18.97587066,141.29,141.25,82.133]
[1741316299188,18.97587066,141.29,141.25,0.033]
[1741316299394,18.97587066,141.28,141.25,0.033]
[1741316299696,18.97587066,141.28,141.25,0.17516157]
[1741316300066,18.79181043,141.31,141.25,0.033]
[1741316300280,18.97587066,141.29,141.25,0.17516157]
[1741316300482,18.97587066,141.29,141.25,0.033]
[1741316301084,18.79181043,141.31,141.25,0.17516157]
[1741316301377,18.97587066,141.28,141.25,0.17516157]
[1741316301997,18.97587066,141.28,141.25,0.033]
[1741316302292,18.97587066,141.26,141.2,168.553]
[1741316302469,18.97587066,141.24,141.21,0.14216157]
[1741316302674,18.97587066,141.24,141.2,0.033]
[1741316303507,18.97587066,141.25,141.2,0.033]
[1741316303802,18.97587066,141.25,141.2,0.17516157]
[1741316304596,18.97587066,141.24,141.2,0.033]
[1741316304783,18.97587066,141.24,141.2,0.17516157]
[1741316305295,18.97587066,141.21,141.2,0.033]
[1741316306400,18.97587066,141.21,141.19,0.033]
[1741316306692,18.97587066,141.2,141.19,0.033]
[1741316308274,22.51418152,141.2,141.19,0.033]
[1741316309878,22.51418152,141.2,141.18,0.033]
[1741316310093,18.97587066,141.19,141.18,0.033]
[1741316311999,37.76768109,141.19,141.16,0.033]
[1741316312197,18.97587066,141.17,141.16,0.033]
[1741316314327,37.76768109,141.17,141.16,0.033]
[1741316314622,100.97587066,141.17,141.16,0.033]
[1741316316201,3.46472375,141.2,141.16,0.033]
[1741316316202,18.97587066,141.18,141.16,0.033]
[1741316316426,18.97587066,141.19,141.16,0.033]
[1741316317212,18.97587066,141.25,141.18,19.11803223]
[1741316317526,18.97587066,141.28,141.22,0.14216157]
[1741316317718,18.97587066,141.27,141.22,0.14216157]
[1741316317917,18.97587066,141.26,141.22,0.14216157]
[1741316318227,5.74500356,141.29,141.21,0.14216157]
[1741316318425,18.97587066,141.27,141.21,0.14216157]
[1741316318632,18.97587066,141.27,141.21,19.11803223]
[1741316319136,18.97587066,141.27,141.2,19.11803223]
[1741316319334,18.97587066,141.26,141.2,312.14216157]
[1741316319708,18.97587066,141.26,141.2,331.11803223]
[1741316320730,18.97587066,141.26,141.2,312.14216157]
[1741316321528,82.0,141.29,141.2,338.20013223]
[1741316321730,18.97587066,141.29,141.24,0.14216157]
[1741316322415,18.97587066,141.29,141.23,0.14216157]
[1741316322622,18.97587066,141.29,141.23,82.24216157]
[1741316322820,18.97587066,141.29,141.23,89.32266157]
[1741316323026,18.97587066,141.29,141.23,82.24216157]
[1741316323931,18.97587066,141.3,141.23,101.21803223]
[1741316324305,102.29684886,141.33,141.23,82.24216157]
[1741316324500,7.39088725,141.33,141.26,0.14216157]
[1741316324728,101.00587066,141.34,141.28,0.14216157]
[1741316324920,18.97587066,141.32,141.28,0.14216157]
[1741316325103,18.97587066,141.31,141.28,0.14216157]
[1741316325904,18.97587066,141.32,141.28,0.14216157]
[1741316326632,18.97587066,141.32,141.27,0.14216157]
[1741316326839,0.03,141.34,141.27,101.21803223]
[1741316327007,18.97587066,141.33,141.27,101.21803223]
[1741316327207,0.03,141.34,141.27,82.24216157]
[1741316327415,18.97587066,141.33,141.27,108.71803223]
[1741316327812,19.00587066,141.34,141.27,108.71803223]
[1741316328020,0.03,141.34,141.29,0.14216157]
[1741316329332,0.03,141.31,141.29,0.14216157]
[1741316329540,0.03,141.31,141.29,82.24216157]
[1741316330737,0.03,141.31,141.29,394.24216157]
[1741316331540,0.03,141.31,141.24,82.1]
[1741316331717,18.97587066,141.28,141.22,6.2888]
[1741316331916,18.97587066,141.26,141.22,6.2888]
[1741316332137,7.53,141.31,141.22,88.3888]
[1741316332345,0.03,141.31,141.25,0.14216157]
[1741316332544,19.00587066,141.31,141.25,82.24216157]
[1741316332726,5.15225833,141.32,141.25,82.24216157]
[1741316332922,18.97587066,141.28,141.25,82.24216157]
[1741316333128,18.97587066,141.28,141.23,0.14216157]
[1741316333521,18.97587066,141.3,141.25,0.14216157]
[1741316334238,18.97587066,141.27,141.22,88.3888]
[1741316334539,18.97587066,141.27,141.23,0.14216157]
[1741316334736,0.14216157,141.3,141.23,0.14216157]
[1741316334737,18.97587066,141.28,141.23,0.14216157]
[1741316334923,18.97587066,141.29,141.23,0.14216157]
[1741316335120,82.0,141.31,141.23,19.11803223]
[1741316335329,18.97587066,141.3,141.25,0.14216157]
[1741316336028,18.97587066,141.29,141.24,0.14216157]
[1741316336743,18.97587066,141.31,141.25,18.97587066]
[1741316336936,18.97587066,141.32,141.26,19.11803223]
[1741316337241,18.97587066,141.3,141.26,82.24216157]
[1741316338047,18.97587066,141.28,141.25,7.5]
[1741316338346,18.97587066,141.28,141.26,0.14216157]
[1741316338548,18.97587066,141.27,141.22,88.3888]
[1741316338846,18.97587066,141.27,141.22,6.2888]
[1741316339031,18.97587066,141.28,141.22,6.2888]
[1741316339344,18.97587066,141.28,141.23,0.14216157]
[1741316339850,18.97587066,141.29,141.23,19.11803223]
[1741316340030,18.97587066,141.29,141.23,101.21803223]
[1741316340745,18.97587066,141.29,141.23,82.24216157]
[1741316340922,18.97587066,141.29,141.23,101.21803223]
[1741316341251,0.03,141.34,141.26,0.14216157]
[1741316341545,18.97587066,141.32,141.27,7.5]
[1741316341843,18.97587066,141.32,141.28,0.14216157]
[1741316342722,18.97587066,141.33,141.28,0.14216157]
[1741316343444,0.03,141.34,141.28,0.14216157]
[1741316343651,19.00587066,141.34,141.28,0.14216157]
[1741316344037,0.03,141.34,141.28,89.31986157]
[1741316344242,0.03,141.34,141.3,0.14216157]
[1741316344439,0.03,141.34,141.3,101.21803223]
[1741316344635,0.03,141.34,141.3,413.21803223]
[1741316345150,0.03,141.34,141.3,394.24216157]
[1741316345350,0.03,141.34,141.3,413.21803223]
[1741316345537,0.03,141.34,141.3,420.29473223]